bitfinex/quotes_SOLUSD_20260117
["timestamp","ask_amount","ask_price","bid_price","bid_amount"]
[1768620936606,15.56349539,144.19,144.16,1.57074355]
[1768620936817,5.17340816,144.18,144.16,1.57074355]
[1768620937002,15.56349539,144.19,144.16,1.57074355]
[1768620937195,5.17340816,144.18,144.16,1.57074355]
[1768620937395,15.56349539,144.19,144.16,1.57074355]
[1768620937607,5.173591,144.18,144.16,1.57074355]
[1768620937809,15.56349539,144.19,144.16,1.57074355]
[1768620938109,5.17358974,144.18,144.16,1.57074355]
[1768620938308,15.56349539,144.19,144.16,1.57074355]
[1768620938502,5.17392195,144.18,144.16,1.57074355]
[1768620938693,15.56349539,144.19,144.16,1.57074355]
[1768620938894,5.17392321,144.18,144.16,1.57074355]
[1768620939106,15.56349539,144.19,144.16,1.57074355]
[1768620939303,5.17401227,144.18,144.16,1.57074355]
[1768620939504,15.56349539,144.19,144.16,1.57074355]
[1768620939691,5.17437249,144.18,144.16,1.57074355]
[1768620939894,15.56349539,144.19,144.16,1.57074355]
[1768620940107,5.17437123,144.18,144.16,1.57074355]
[1768620940312,15.56349539,144.19,144.16,1.57074355]
[1768620940521,5.17468643,144.18,144.16,1.57074355]
[1768620940706,15.56349539,144.19,144.16,1.57074355]
[1768620940910,5.17480643,144.18,144.16,1.57074355]
[1768620941207,15.56349539,144.19,144.16,1.57074355]
[1768620941405,5.17523458,144.18,144.16,1.57074355]
[1768620941623,15.56349539,144.19,144.16,1.57074355]
[1768620941794,5.17523458,144.18,144.16,1.57074355]
[1768620942096,15.56349539,144.19,144.16,1.57074355]
[1768620942395,5.17575294,144.18,144.16,1.57074355]
[1768620942694,15.56349539,144.19,144.16,1.57074355]
[1768620942895,5.17579998,144.18,144.16,1.57074355]
[1768620943092,6.93702201,144.19,144.17,1.66845639]
[1768620943318,8.57259522,144.2,144.17,1.60845639]
[1768620943720,5.17660872,144.19,144.17,1.60845639]
[1768620943906,8.57259522,144.2,144.17,1.60845639]
[1768620944107,5.17652092,144.19,144.17,1.60845639]
[1768620944421,8.57259522,144.2,144.17,1.60845639]
[1768620944623,5.17724985,144.19,144.17,1.60845639]
[1768620944919,8.57259522,144.2,144.17,1.60845639]
[1768620945123,5.17725616,144.19,144.17,1.60845639]
[1768620945308,8.57259522,144.2,144.17,1.60845639]
[1768620945621,5.1771308,144.19,144.17,1.60845639]
[1768620945920,8.57259522,144.2,144.17,1.60845639]
[1768620946118,5.1771271,144.19,144.17,1.60845639]
[1768620946321,8.57259522,144.2,144.17,1.60845639]
[1768620946516,5.17724565,144.19,144.17,1.60845639]
[1768620946715,8.57259522,144.2,144.17,1.60845639]
[1768620947022,5.17724691,144.19,144.17,1.60845639]
[1768620947198,8.57259522,144.2,144.17,1.60845639]
[1768620947498,5.17742521,144.19,144.17,1.60845639]
[1768620947697,8.57259522,144.2,144.17,1.60845639]
[1768620947998,5.17730516,144.19,144.17,1.60845639]
[1768620948196,8.57259522,144.2,144.17,1.60845639]
[1768620948400,5.17726604,144.19,144.17,1.60845639]
[1768620948594,8.57259522,144.2,144.17,1.60845639]
[1768620948804,5.17766432,144.19,144.17,1.60845639]
[1768620949025,8.57259522,144.2,144.17,1.60845639]
[1768620949210,5.17766432,144.19,144.17,1.60845639]
[1768620949395,8.57259522,144.2,144.17,1.60845639]
[1768620949598,5.17733066,144.19,144.17,1.60845639]
[1768620949798,8.57259522,144.2,144.17,1.60845639]
[1768620950024,5.17737769,144.19,144.17,1.60845639]
[1768620950323,8.57259522,144.2,144.17,1.60845639]
[1768620950516,5.17715932,144.19,144.17,1.60845639]
[1768620950718,8.57259522,144.2,144.17,1.60845639]
[1768620950904,5.17697586,144.19,144.17,1.60845639]
[1768620951100,8.57259522,144.2,144.17,1.60845639]
[1768620951302,5.17700088,144.19,144.17,1.60845639]
[1768620951506,8.57259522,144.2,144.17,1.60845639]
[1768620951808,5.17639458,144.19,144.17,1.60845639]
[1768620952127,21.08767909,144.21,144.18,1.65300592]
[1768620952306,5.17665163,144.2,144.18,1.59300592]
[1768620952619,1.53483141,144.21,144.18,1.59300592]
[1768620953933,8.46926925,144.21,144.18,1.59300592]
[1768620954317,10.68573484,144.21,144.18,1.59300592]
[1768620957529,8.46926925,144.21,144.18,1.59300592]
[1768620959831,28.02781824,144.22,144.19,1.65300592]
[1768620960041,30.24428383,144.22,144.19,1.65300592]
[1768620960242,19.55891329,144.22,144.19,1.65300592]
[1768620960418,10.68484392,144.23,144.19,1.65300592]
[1768620960616,17.62061087,144.23,144.19,1.65300592]
[1768620960830,8.47059836,144.23,144.19,1.65300592]
[1768620961021,10.68434915,144.24,144.19,1.65300592]
[1768620961335,5.17327113,144.23,144.2,1.65300592]
[1768620961510,25.79918707,144.24,144.2,1.62176379]
[1768620961706,5.1719647,144.23,144.2,8.55643292]
[1768620961922,17.33130351,144.24,144.2,6.93466913]
[1768620962131,8.46731082,144.25,144.2,9.15113472]
[1768620962335,25.79861433,144.25,144.2,9.15113472]
[1768620963536,25.79861433,144.25,144.21,1.65300592]
[1768620964023,1.53483141,144.24,144.21,1.65300592]
[1768620964424,1.53483141,144.24,144.22,1.65300592]
[1768620964721,1.53483141,144.24,144.22,1.59300592]
[1768620968987,1.53483141,144.24,144.22,8.52684326]
[1768620969128,28.02098629,144.26,144.23,1.65300592]
[1768620969834,8.46695356,144.26,144.23,1.65300592]
[1768620970035,1.53483141,144.25,144.22,8.58684326]
[1768620970256,17.61725649,144.26,144.23,1.65300592]
[1768620970857,8.46695356,144.26,144.23,1.65300592]
[1768620974670,1.53483141,144.26,144.23,1.65300592]
[1768620981782,1.53483141,144.26,144.23,8.58637203]
[1768620985989,1.53483141,144.26,144.23,8.52637203]
[1768621004516,10.82635274,144.27,144.24,1.65030937]
[1768621005311,17.75971885,144.27,144.24,1.65030937]
[1768621005613,1.67823237,144.26,144.23,6.93336611]
[1768621005801,1.67823237,144.26,144.23,8.58367548]
[1768621006125,1.67823237,144.26,144.24,1.65030937]
[1768621008826,13.86502089,144.27,144.24,1.65030937]
[1768621009313,6.93336611,144.27,144.25,1.65030937]
[1768621009513,8.60933955,144.28,144.25,1.59030937]
[1768621009714,25.94465031,144.28,144.25,1.59030937]
[1768621011326,25.94465031,144.28,144.23,9.14728346]
[1768621011327,1.67823237,144.27,144.23,9.14728346]
[1768621011524,1.67823237,144.27,144.24,1.52979073]
[1768621014445,8.60973412,144.27,144.24,1.52979073]
[1768621022954,1.60513591,144.26,144.23,8.46296567]
[1768621024455,6.78262425,144.25,144.23,1.52979073]
[1768621024663,1.60513591,144.25,144.22,1.52979073]
[1768621024845,5.17700504,144.24,144.22,1.52979073]
[1768621025043,1.60513591,144.25,144.22,1.52979073]
[1768621026553,8.53764545,144.25,144.22,1.52979073]
[1768621034859,1.60513591,144.25,144.22,1.52979073]
[1768621045667,8.53755159,144.25,144.22,1.52979073]
[1768621055378,1.60513591,144.25,144.22,8.46361776]
[1768621057785,19.54332919,144.27,144.23,1.58893542]
[1768621057786,10.76633322,144.27,144.23,1.58893542]
[1768621057986,5.16904838,144.26,144.23,1.58893542]
[1768621058281,8.5522247,144.27,144.23,1.58893542]
[1768621058454,5.16947346,144.26,144.23,1.58893542]
[1768621058657,1.62058083,144.26,144.23,1.58893542]
[1768621060990,1.62058083,144.26,144.23,8.52224939]
[1768621062282,1.62058083,144.26,144.24,1.58893542]
[1768621064486,10.76633322,144.27,144.24,1.58893542]
[1768621064782,8.5522247,144.27,144.24,1.58893542]
[1768621065164,1.62058083,144.26,144.24,1.58893542]
[1768621066581,1.62058083,144.26,144.23,6.93331397]
[1768621066787,1.62058083,144.26,144.23,8.52224939]
[1768621071470,1.62058083,144.26,144.23,8.02224939]
[1768621074990,24.32547303,144.28,144.24,1.62334406]
[1768621075305,5.17137872,144.27,144.24,1.62334406]
[1768621075488,25.91057477,144.28,144.24,1.62334406]
[1768621075676,6.75626906,144.27,144.24,1.62334406]
[1768621075868,1.58510174,144.27,144.24,1.62334406]
[1768621079289,1.58510174,144.27,144.24,8.55609147]
[1768621084896,8.51661219,144.27,144.24,1.62334406]
[1768621085191,1.58510174,144.27,144.24,1.62334406]
[1768621086499,1.58510174,144.27,144.24,8.55611557]
[1768621092101,1.58510174,144.27,144.24,1.62334406]
[1768621092605,8.51656739,144.27,144.24,1.62334406]
[1768621103116,1.53499077,144.26,144.22,9.14794409]
[1768621103316,1.53499077,144.26,144.23,1.57563281]
[1768621105404,8.46645642,144.27,144.23,1.57563281]
[1768621106320,5.17624558,144.26,144.23,1.57563281]
[1768621106522,8.46645642,144.27,144.23,1.57563281]
[1768621106819,5.17647151,144.26,144.23,1.57563281]
[1768621107021,8.46645642,144.27,144.23,1.57563281]
[1768621107208,5.17647025,144.26,144.23,1.57563281]
[1768621107507,8.46645642,144.27,144.23,1.57563281]
[1768621107692,5.17676615,144.26,144.23,1.57563281]
[1768621107897,8.46645642,144.27,144.23,1.57563281]
[1768621108105,5.17676524,144.26,144.23,1.57563281]
[1768621108396,8.46645642,144.27,144.23,1.57563281]
[1768621108598,5.17680578,144.26,144.23,1.57563281]
[1768621108815,8.46645642,144.27,144.23,1.57563281]
[1768621109017,5.17680578,144.26,144.23,1.57563281]
[1768621109210,8.46645642,144.27,144.23,1.57563281]
[1768621109403,12.10884459,144.26,144.23,1.57563281]
[1768621109605,6.93200656,144.26,144.23,1.57563281]
[1768621112225,8.60217847,144.26,144.23,1.57563281]
[1768621123014,6.93200656,144.26,144.23,1.57563281]
[1768621123336,8.60217847,144.26,144.23,3.7899353]
[1768621126342,8.60217847,144.26,144.23,1.57563281]
[1768621131351,6.93144797,144.27,144.23,1.57563281]
[1768621131542,3.48519543,144.26,144.23,1.57964332]
[1768621131841,8.50543407,144.27,144.23,1.57964332]
[1768621133138,1.5739861,144.26,144.23,1.57964332]
[1768621135449,8.50592685,144.26,144.23,1.57964332]
[1768621138666,8.2653675,144.26,144.23,1.57964332]
[1768621139362,8.2653675,144.26,144.23,3.79374792]
[1768621140835,8.2653675,144.26,144.23,1.57964332]
[1768621141451,1.5739861,144.25,144.21,8.513841]
[1768621141773,1.5739861,144.25,144.21,10.7279456]
[1768621142137,1.5739861,144.25,144.22,1.57964332]
[1768621143663,8.50643734,144.25,144.22,1.57964332]
[1768621155237,23.68643734,144.25,144.22,1.57964332]
[1768621179263,1.64158452,144.23,144.19,2.2141046]
[1768621179580,2.2141046,144.23,144.18,1.66165955]
[1768621179785,23.01349448,144.23,144.18,1.66165955]
[1768621180875,22.98349449,144.23,144.18,1.66165955]
[1768621181377,8.57543558,144.22,144.18,1.66165955]
[1768621181577,8.54543559,144.22,144.18,1.66165955]
[1768621183187,10.75954019,144.22,144.18,1.66165955]
[1768621185195,8.5154356,144.22,144.19,1.66165955]
[1768621192998,8.48543561,144.22,144.19,1.66165955]
[1768621199198,20.79938988,144.23,144.2,1.53564128]
[1768621199403,8.5133071,144.24,144.2,1.53564128]
[1768621199701,8.51526253,144.23,144.2,1.53564128]
[1768621202008,15.4486893,144.23,144.2,1.53564128]
[1768621203508,8.51340187,144.23,144.2,1.53564128]
[1768621217919,6.93342677,144.23,144.2,1.53564128]
[1768621218410,20.79794793,144.25,144.21,1.53564128]
[1768621218713,8.51220176,144.26,144.22,1.53564128]
[1768621220015,8.51220176,144.26,144.22,8.46935612]
[1768621220320,8.51220176,144.26,144.23,1.53564128]
[1768621220721,6.93222666,144.26,144.23,1.53564128]
[1768621221310,8.51163554,144.27,144.23,1.53564128]
[1768621221510,1.52810159,144.26,144.23,1.53564128]
[1768621222218,1.52810159,144.26,144.23,8.46899148]
[1768621232427,1.52810159,144.26,144.23,6.9333502]
[1768621235306,1.52810159,144.26,144.23,8.55309308]
[1768621262753,1.52810159,144.26,144.23,10.76733824]
[1768621262961,1.55502462,144.28,144.24,1.52298088]
[1768621263137,5.17600549,144.27,144.25,1.52298088]
[1768621263454,1.55502462,144.29,144.26,1.52298088]
[1768621263640,5.17715494,144.28,144.26,1.52298088]
[1768621263842,5.17715494,144.27,144.26,1.52298088]
[1768621264156,1.55502462,144.28,144.26,1.52298088]
[1768621266238,1.55502462,144.28,144.26,6.93192815]
[1768621268939,1.55502462,144.28,144.26,6.87192815]
[1768621271959,1.55502462,144.29,144.26,8.39490903]
[1768621272162,1.55502462,144.29,144.26,6.87192815]
[1768621273649,5.17310353,144.28,144.26,6.87192815]
[1768621273858,1.55502462,144.28,144.26,6.87192815]
[1768621284571,1.55502462,144.28,144.25,8.45521947]
[1768621287880,1.55502462,144.28,144.25,8.39521947]
[1768621321900,1.59555213,144.29,144.26,1.52344633]
[1768621324209,1.59555213,144.29,144.26,8.45515376]
[1768621360624,8.52604292,144.29,144.26,8.45515376]
[1768621372454,8.52604292,144.29,144.26,10.66879973]
[1768621377850,8.52604292,144.29,144.26,8.45515376]
[1768621381355,5.18143487,144.28,144.26,1.52344633]
[1768621381657,8.52604292,144.29,144.26,1.52344633]
[1768621381858,5.18143487,144.28,144.26,1.52344633]
[1768621382060,8.52604292,144.29,144.26,1.52344633]
[1768621382252,5.18098258,144.28,144.26,1.52344633]
[1768621382454,8.52604292,144.29,144.26,1.52344633]
[1768621382646,5.18138559,144.28,144.26,1.52344633]
[1768621382846,8.52604292,144.29,144.26,1.52344633]
[1768621383146,5.18102412,144.28,144.26,1.52344633]
[1768621383349,8.52604292,144.29,144.26,1.52344633]
[1768621383541,5.18062859,144.28,144.26,1.52344633]
[1768621383742,8.52604292,144.29,144.26,1.52344633]
[1768621383943,5.18062985,144.28,144.26,1.52344633]
[1768621384142,8.52604292,144.29,144.26,1.52344633]
[1768621386967,5.17987516,144.28,144.26,1.52344633]
[1768621387163,8.52604292,144.29,144.26,1.52344633]
[1768621387468,5.17955388,144.28,144.26,1.52344633]
[1768621387643,8.52604292,144.29,144.26,1.52344633]
[1768621387844,5.17952122,144.28,144.26,1.52344633]
[1768621388143,8.52604292,144.29,144.26,1.52344633]
[1768621388344,5.17925237,144.28,144.26,1.52344633]
[1768621388643,8.52604292,144.29,144.26,1.52344633]
[1768621388840,5.17920997,144.28,144.26,1.52344633]
[1768621389043,8.52604292,144.29,144.26,1.52344633]
[1768621389245,5.17898109,144.28,144.26,1.52344633]
[1768621389466,8.52604292,144.29,144.26,1.52344633]
[1768621389766,5.17894226,144.28,144.26,1.52344633]
[1768621389944,8.52604292,144.29,144.26,1.52344633]
[1768621390262,5.17894226,144.28,144.26,1.52344633]
[1768621390578,8.52604292,144.29,144.26,1.52344633]
[1768621406886,1.59199319,144.28,144.25,8.548607]
[1768621410687,1.59199319,144.28,144.25,6.93229696]
[1768621411385,1.59199319,144.28,144.25,8.5579058]
[1768621421778,1.59199319,144.28,144.25,6.93229696]
[1768621422279,1.59199319,144.28,144.25,8.5579058]
[1768621423094,1.59199319,144.28,144.25,6.93229696]
[1768621424805,1.59199319,144.28,144.25,8.5579058]
[1768621427309,1.59199319,144.28,144.25,8.4979058]
[1768621428804,1.59199319,144.28,144.25,6.87229696]
[1768621429803,1.59199319,144.28,144.25,8.4979058]
[1768621430501,1.56257512,144.26,144.24,62.4]
[1768621433707,1.56257512,144.26,144.23,8.55867743]
[1768621439320,1.56257512,144.26,144.23,10.77274705]
[1768621440923,1.56257512,144.26,144.23,28.10617282]
[1768621441217,1.62735877,144.3,144.26,1.583271]
[1768621441418,1.62735877,144.3,144.27,6.93144797]
[1768621441716,1.62735877,144.29,144.27,6.93144797]
[1768621444209,1.62735877,144.29,144.27,6.87144797]
[1768621445919,1.62735877,144.29,144.26,8.51500955]
[1768621450622,1.62735877,144.3,144.27,1.583271]
[1768621453811,20.78785988,144.31,144.29,1.583271]
[1768621454117,8.75650468,144.32,144.29,1.523271]
[1768621454416,15.68771206,144.32,144.29,1.523271]
[1768621454616,8.75650468,144.32,144.29,1.523271]
[1768621457920,1.62735877,144.31,144.28,10.72801897]
[1768621458845,1.62735877,144.31,144.28,8.51394935]
[1768621466654,1.62735877,144.31,144.28,10.72801897]
[1768621470047,1.62735877,144.31,144.28,9.14474797]
[1768621470252,1.62735877,144.31,144.29,1.67511832]
[1768621471048,1.62735877,144.31,144.28,10.79418109]
[1768621472451,1.83411487,144.32,144.29,3.86350274]
[1768621473358,1.83411487,144.32,144.29,1.64943312]
[1768621473542,1.83411487,144.32,144.29,8.57969283]
[1768621476465,1.83411487,144.32,144.29,10.79376245]
[1768621476862,1.83411487,144.32,144.29,8.57969283]
[1768621479763,0.2,144.32,144.3,1.64943312]
[1768621480059,0.2,144.33,144.31,1.64943312]
[1768621482359,0.2,144.33,144.31,8.57892305]
[1768621482861,0.2,144.34,144.32,3.86350274]
[1768621483244,0.2,144.34,144.32,10.7925324]
[1768621484352,0.2,144.34,144.32,8.57846278]
[1768621485166,1e-08,144.34,144.32,8.57846278]
[1768621485550,1e-08,144.34,144.32,10.7925324]
[1768621485746,1e-08,144.34,144.33,1.64943312]
[1768621486058,1e-08,144.34,144.33,3.86350274]
[1768621486968,1e-08,144.34,144.33,10.79206921]
[1768621488971,1e-08,144.34,144.33,8.57799959]
[1768621490753,0.2,144.36,144.34,1.64943312]
[1768621491078,1.63411487,144.37,144.34,3.86350274]
[1768621491975,1.63411487,144.37,144.34,10.79111415]
[1768621493467,1.86290558,144.38,144.35,10.66151818]
[1768621493675,1.86290558,144.38,144.35,8.44744856]
[1768621496673,1.86290558,144.38,144.36,8.44705561]
[1768621496871,1.86290558,144.4,144.37,1.51993003]
[1768621498470,1.86290558,144.4,144.36,8.44705561]
[1768621499473,1.86290558,144.4,144.36,10.66112523]
[1768621501159,1.86290558,144.4,144.36,8.44705561]
[1768621501679,1.86290558,144.4,144.36,10.6573046]
[1768621501859,1.86290558,144.4,144.36,9.13737457]
[1768621502063,1.86290558,144.4,144.37,8.44643509]
[1768621502269,0.2,144.4,144.38,1.51993003]
[1768621502575,1.86290558,144.41,144.38,1.51993003]
[1768621503790,1.86290558,144.41,144.38,8.44608534]
[1768621506281,7.12475443,144.41,144.38,1.51993003]
[1768621506481,1.66290558,144.4,144.37,8.44641126]
[1768621509778,1.66290558,144.38,144.36,6.92698492]
[1768621510459,9.13550554,144.4,144.36,8.44691495]
[1768621510788,1.66290558,144.39,144.36,8.44691495]
[1768621511216,1.66290558,144.39,144.33,9.33500342]
[1768621511368,1.66290558,144.33,144.31,6.92946749]
[1768621511683,1.66290558,144.32,144.29,8.45010816]
[1768621516058,1.66290558,144.32,144.3,1.51993003]
[1768621516464,1.66290558,144.33,144.3,8.44989893]
[1768621516664,8.59060832,144.35,144.31,1.51993003]
[1768621516872,1.66290558,144.34,144.31,1.51993003]
[1768621524701,1.62692507,144.35,144.32,1.52094385]
[1768621524880,8.55421749,144.36,144.32,1.52094385]
[1768621525197,1.62692507,144.35,144.32,1.52094385]
[1768621526294,8.55421749,144.36,144.32,1.52094385]
[1768621526893,1.62692507,144.35,144.32,8.4499309]
[1768621529100,1.62692507,144.35,144.32,10.66017989]
[1768621531501,6.92729242,144.36,144.32,10.66017989]
[1768621531502,8.47044554,144.37,144.34,1.67769166]
[1768621532777,6.92680967,144.37,144.34,1.67769166]
[1768621533090,6.92680967,144.37,144.33,10.81636945]
[1768621533091,1.54363587,144.36,144.33,10.81636945]
[1768621533293,1.54363587,144.36,144.33,8.60612046]
[1768621543914,1.54363587,144.36,144.33,6.9284288]
[1768621555621,1.54631285,144.35,144.31,63.98571513]
[1768621555815,1.54631285,144.33,144.31,62.4]
[1768621556012,1.54631285,144.33,144.3,8.51525893]
[1768621579550,1.54631285,144.33,144.3,6.9295438]
[1768621585831,1.54631285,144.33,144.3,8.49007538]
[1768621590162,1.54631285,144.33,144.31,1.56053158]
[1768621591838,5e-08,144.33,144.31,1.56053158]
[1768621592058,6.92816921,144.34,144.31,1.56053158]
[1768621592263,9.13999048,144.35,144.31,1.56053158]
[1768621593769,1.58596361,144.34,144.31,8.49002587]
[1768621614376,1.66251952,144.33,144.3,6.92966228]
[1768621614555,1.66251952,144.33,144.3,8.56263516]
[1768621622885,1.66251952,144.33,144.3,1.63297288]
[1768621623197,1.66251952,144.33,144.3,8.56272032]
[1768621623495,1.66251952,144.33,144.3,10.77500371]
[1768621623791,1.63251953,144.33,144.3,8.56272032]
[1768621624088,1.60251954,144.33,144.3,8.56272032]
[1768621626684,1.57251955,144.33,144.3,8.56272032]
[1768621635095,1.54251956,144.33,144.3,8.56272032]
[1768621642404,1.51251957,144.33,144.3,8.56272032]
[1768621649819,1.48251958,144.33,144.3,8.56272032]
[1768621651416,1.45251959,144.33,144.3,8.56272032]
[1768621656512,1.4225196,144.33,144.3,8.56272032]
[1768621656697,1.39251961,144.33,144.3,8.56272032]
[1768621662134,1.63675346,144.36,144.32,1.66463262]
[1768621662317,1.63675346,144.36,144.33,1.66463262]
[1768621662825,1.63675346,144.36,144.34,6.92808646]
[1768621663229,3.84903685,144.37,144.34,8.59271908]
[1768621663422,1.63675346,144.36,144.34,8.59271908]
[1768621675535,1.68330072,144.37,144.35,1.55993095]
[1768621676233,1.68330072,144.37,144.34,8.48801741]
[1768621677153,1.68330072,144.39,144.35,1.55993095]
[1768621678268,1.68330072,144.39,144.35,8.4870601]
[1768621678439,1.68330072,144.39,144.36,1.55993095]
[1768621679060,1.68330072,144.39,144.36,1.49993095]
[1768621682265,1.68330072,144.39,144.36,8.42658915]
[1768621689649,8.60861713,144.4,144.37,1.55993095]
[1768621689855,8.60861713,144.4,144.37,1.49993095]
[1768621691165,1.68330072,144.4,144.37,8.42650702]
[1768621692969,1.68330072,144.4,144.37,8.36650702]
[1768621699073,3.89366385,144.4,144.37,8.36650702]
[1768621699585,1.68330072,144.4,144.38,1.55993095]
[1768621701989,10.97636158,144.41,144.38,1.55993095]
[1768621702590,8.76599845,144.41,144.38,1.55993095]
[1768621702894,10.97636158,144.41,144.38,1.55993095]
[1768621705677,1.64111222,144.4,144.38,1.55993095]
[1768621706279,8.76599845,144.41,144.38,1.55993095]
[1768621706598,10.97636158,144.41,144.38,1.55993095]
[1768621709795,4.05147535,144.41,144.38,6.92616297]
[1768621709995,22.28446898,144.42,144.38,6.92616297]
[1768621709996,0.2,144.42,144.39,1.66893621]
[1768621711187,0.2,144.42,144.39,8.59456283]
[1768621713205,0.2,144.42,144.4,8.54607315]
[1768621714204,0.2,144.42,144.4,1.62087711]
[1768621722713,1.52922277,144.4,144.38,1.62087711]
[1768621724182,1.52922277,144.4,144.37,8.54724465]
[1768621724397,1.52922277,144.4,144.37,1.62087711]
[1768621724804,1.52922277,144.4,144.37,8.54750586]
[1768621726194,10.66435543,144.41,144.38,1.62087711]
[1768621727315,8.45443875,144.4,144.37,1.62087711]
[1768621727489,10.66480188,144.4,144.37,1.62087711]
[1768621727689,1.52922277,144.39,144.36,8.547812]
[1768621728214,1.52922277,144.39,144.37,1.62087711]
[1768621728990,1.52922277,144.39,144.36,6.92693489]
[1768621729490,1.52922277,144.39,144.36,1.62087711]
[1768621731828,1.52922277,144.39,144.37,6.92664681]
[1768621733124,1.52922277,144.39,144.37,1.62142997]
[1768621733325,10.67846218,144.41,144.37,1.62142997]
[1768621733726,1e-08,144.42,144.4,1.62142997]
[1768621733909,1e-08,144.42,144.41,1.62142997]
[1768621735141,1e-08,144.42,144.41,8.54615817]
[1768621738402,1e-08,144.42,144.4,8.54643599]
[1768621741608,1e-08,144.42,144.41,1.62142997]
[1768621745242,1e-08,144.42,144.4,1.62142997]
[1768621746248,1e-08,144.42,144.4,8.54633478]
[1768621749841,1.54319209,144.42,144.4,8.54633478]
[1768621750345,1e-08,144.42,144.4,8.54633478]
[1768621751746,1e-08,144.42,144.4,6.92490481]
[1768621751952,1.54319209,144.42,144.39,70.94690968]
[1768621752151,1.54319209,144.42,144.39,69.32547971]
[1768621752634,1.54319209,144.42,144.39,70.94690968]
[1768621753157,1.54319209,144.42,144.39,8.54690968]
[1768621754449,1.54319208,144.41,144.38,8.54744499]
[1768621754759,1.51319209,144.41,144.38,8.54744499]
[1768621761440,1.51319209,144.41,144.38,6.92601502]
[1768621762139,1.51319209,144.41,144.38,8.51338748]
[1768621766268,1.66362933,144.4,144.37,63.98737246]
[1768621766573,1.66362933,144.4,144.37,70.91396832]
[1768621770764,1.66362933,144.4,144.37,8.51396832]
[1768621771768,1.66362933,144.4,144.36,6.92712662]
[1768621771949,6.92439332,144.42,144.39,1.58986967]
[1768621772173,8.49528053,144.42,144.39,1.58986967]
[1768621772545,8.46528054,144.42,144.39,1.58986967]
[1768621773767,1.57088721,144.41,144.39,1.58986967]
[1768621773969,1.54088722,144.41,144.39,1.58986967]
[1768621774157,1.51088723,144.41,144.39,1.58986967]
[1768621776449,1.48088724,144.41,144.39,1.58986967]
[1768621782773,1.48088724,144.41,144.38,1.58986967]
[1768621783659,1.45088725,144.41,144.38,8.51601403]
[1768621786183,1.57088721,144.4,144.38,1.58986967]
[1768621786355,1.57088721,144.4,144.37,8.51630266]
[1768621786550,1.57088721,144.4,144.37,6.92643299]
[1768621786949,1.57088721,144.4,144.37,8.51630266]
[1768621790378,1.54088722,144.4,144.37,8.51630266]
[1768621790679,1.54088722,144.4,144.36,79.71781656]
[1768621790680,9.13484127,144.4,144.36,70.91688388]
[1768621790878,2.20935707,144.39,144.36,70.91688388]
[1768621792384,3.73519871,144.39,144.36,70.91688388]
[1768621793483,3.70519872,144.39,144.36,70.91688388]
[1768621793865,1.52584164,144.39,144.36,70.91688388]
[1768621794066,1.52584164,144.39,144.36,8.51688388]
[1768621794282,1.49584165,144.39,144.36,8.51688388]
[1768621797773,1.46584166,144.39,144.36,8.51688388]
[1768621798691,1.46584166,144.39,144.35,8.53508173]
[1768621798989,2.20935707,144.39,144.35,8.53508173]
[1768621799189,9.13512603,144.39,144.35,8.53508173]
[1768621799986,1.52584164,144.38,144.35,8.53508173]
[1768621800193,1.49584165,144.38,144.35,8.53508173]
[1768621801066,1.49584165,144.38,144.36,1.60747522]
[1768621802792,1.46584166,144.38,144.36,1.60747522]
[1768621805793,1.43584167,144.38,144.36,1.60747522]
[1768621809278,1.43584167,144.38,144.35,1.60747522]
[1768621811702,1.43584167,144.38,144.35,8.53498705]
[1768621812000,10.66245087,144.39,144.36,1.60747522]
[1768621812598,1.52584164,144.38,144.35,8.53498705]
[1768621813199,1.49584165,144.38,144.35,8.53498705]
[1768621813698,3.70675465,144.38,144.35,8.53498705]
[1768621815901,2.210913,144.38,144.36,1.60747522]
[1768621820208,2.18091301,144.38,144.36,1.60747522]
[1768621822210,10.66245087,144.39,144.36,1.60747522]
[1768621822908,2.210913,144.38,144.36,1.60747522]
[1768621824206,2.210913,144.38,144.35,6.92757689]
[1768621824410,1.66594323,144.37,144.35,6.92757689]
[1768621825206,8.5926693,144.37,144.34,64.0412585]
[1768621825409,3.87685623,144.36,144.34,62.4]
[1768621825712,1.63594324,144.36,144.33,8.5695592]
[1768621825898,1.63594324,144.36,144.33,6.9283007]
[1768621826101,1.63594324,144.36,144.34,1.6412585]
[1768621827813,3.87685623,144.37,144.34,1.6412585]
[1768621828014,1.66594323,144.37,144.34,1.6412585]
[1768621828208,3.87685623,144.37,144.34,1.6412585]
[1768621829211,1.66594323,144.37,144.34,1.6412585]
[1768621829715,6.92568737,144.39,144.35,1.6412585]
[1768621829906,10.80177175,144.41,144.36,1.6412585]
[1768621830091,5.18051756,144.4,144.36,1.6412585]
[1768621830291,10.80177175,144.41,144.36,1.6412585]
[1768621830492,5.18115666,144.4,144.36,1.6412585]
[1768621830809,3.87685623,144.41,144.36,1.6412585]
[1768621831114,5.18127103,144.4,144.37,1.66563878]
[1768621831309,1.66594323,144.41,144.37,1.66563878]
[1768621831517,5.18187191,144.4,144.37,1.66563878]
[1768621831817,1.66594323,144.41,144.37,1.66563878]
[1768621833293,1.66594323,144.41,144.38,1.66563878]